fUSD/lending_fUSD_20240125
["ID","MTS","AMOUNT","RATE_DAILY","PERIOD"]
[312661120,1706141472315,-702.69,0.00049863,31]
[312661121,1706141472324,-500.0,0.00049863,31]
[312661122,1706141472335,-500.0,0.00049863,31]
[312661123,1706141472345,-500.0,0.00049863,31]
[312661124,1706141472356,-619.19,0.00049863,31]
[312661125,1706141472367,-953.39,0.00049863,31]
[312661126,1706141472378,-500.0,0.00049863,2]
[312661127,1706141472389,-520.62902806,0.00049863,31]
[312661128,1706141472399,-500.0,0.00049863,31]
[312661129,1706141472409,-500.0,0.00049863,31]
[312661130,1706141472418,-500.0,0.00049863,31]
[312661131,1706141472428,-500.0,0.00049863,31]
[312661132,1706141472438,-500.0,0.00049863,31]
[312661133,1706141472448,-500.0,0.00049863,31]
[312661134,1706141472457,-500.0,0.00049863,31]
[312661135,1706141472467,-500.0,0.00049863,31]
[312661136,1706141472477,-500.0,0.00049863,31]
[312661137,1706141472488,-500.0,0.00049863,31]
[312661138,1706141472498,-500.0,0.00049863,31]
[312661139,1706141472508,-500.0,0.00049863,31]
[312661140,1706141472519,-500.0,0.00049863,31]
[312661141,1706141472528,-523.13,0.00049863,31]
[312661142,1706141472538,-500.0,0.00049863,31]
[312661143,1706141472549,-500.0,0.00049863,31]
[312661144,1706141472559,-500.0,0.00049863,31]
[312661145,1706141472569,-500.0,0.00049863,31]
[312661146,1706141472579,-500.0,0.00049863,31]
[312661147,1706141472589,-500.0,0.00049863,31]
[312661148,1706141472599,-500.0,0.00049863,31]
[312661149,1706141472609,-500.0,0.00049863,31]
[312661150,1706141472619,-539.3,0.00049863,31]
[312661151,1706141472628,-500.0,0.00049863,31]
[312661152,1706141472638,-500.0,0.00049863,31]
[312661153,1706141472649,-500.0,0.00049863,31]
[312661154,1706141472659,-500.0,0.00049863,31]
[312661155,1706141472670,-500.0,0.00049863,31]
[312661156,1706141472679,-500.0,0.00049863,31]
[312661157,1706141472689,-500.0,0.00049863,31]
[312661158,1706141472699,-500.0,0.00049863,31]
[312661159,1706141472710,-557.24,0.00049863,31]
[312661160,1706141472720,-500.0,0.00049863,31]
[312661161,1706141472729,-500.0,0.00049863,31]
[312661162,1706141472739,-500.0,0.00049863,31]
[312661163,1706141472749,-500.0,0.00049863,31]
[312661164,1706141472763,-500.0,0.00049863,31]
[312661165,1706141472774,-500.0,0.00049863,31]
[312661166,1706141472784,-500.0,0.00049863,31]
[312661167,1706141472795,-500.0,0.00049863,31]
[312661168,1706141472811,-500.0,0.00049863,31]
[312661169,1706141472821,-500.0,0.00049863,31]
[312661170,1706141472831,-500.0,0.00049863,31]
[312661171,1706141472841,-500.0,0.00049863,31]
[312661172,1706141472852,-500.0,0.00049863,31]
[312661173,1706141472863,-596.67,0.00049863,31]
[312661174,1706141472873,-500.0,0.00049863,31]
[312661175,1706141472884,-500.0,0.00049863,31]
[312661176,1706141472894,-500.0,0.00049863,31]
[312661177,1706141472904,-500.0,0.00049863,31]
[312661178,1706141472914,-500.0,0.00049863,31]
[312661179,1706141472924,-500.0,0.00049863,31]
[312661180,1706141472934,-500.0,0.00049863,10]
[312661181,1706141472944,-500.0,0.00049863,31]
[312661182,1706141472954,-500.0,0.00049863,31]
[312661183,1706141472964,-650.62,0.00049863,31]
[312661184,1706141472974,-500.0,0.00049863,31]
[312661185,1706141472985,-530.57,0.00049863,31]
[312661186,1706141472995,-590.77,0.00049863,31]
[312661187,1706141473005,-500.0,0.00049863,31]
[312661188,1706141473015,-500.0,0.00049863,31]
[312661189,1706141473026,-500.0,0.00049863,31]
[312661190,1706141473035,-520.55666639,0.00049863,31]
[312661191,1706141473045,-500.0,0.00049863,31]
[312661192,1706141473058,-500.0,0.00049863,31]
[312661193,1706141473067,-500.0,0.00049863,31]
[312661194,1706141473077,-529.72,0.00049863,31]
[312661195,1706141473088,-500.0,0.00049863,31]
[312661196,1706141473098,-500.0,0.00049863,31]
[312661197,1706141473108,-537.66,0.00049863,31]
[312661198,1706141473118,-500.0,0.00049863,31]
[312661199,1706141473127,-500.0,0.00049863,31]
[312661200,1706141473137,-668.66,0.00049863,31]
[312661201,1706141473148,-500.0,0.00049863,31]
[312661202,1706141473158,-500.0,0.00049863,31]
[312661203,1706141473168,-500.0,0.00049863,31]
[312661204,1706141473178,-500.0,0.00049863,31]
[312661205,1706141473188,-619.6291111,0.00049863,31]
[312661206,1706141473199,-992.14,0.00049863,120]
[312661207,1706141473209,-500.0,0.00049863,31]
[312661208,1706141473219,-500.0,0.00049863,31]
[312661209,1706141473230,-500.0,0.00049863,31]
[312661210,1706141473239,-502.97,0.00049863,31]
[312661211,1706141473250,-500.0,0.00049863,31]
[312661212,1706141473261,-500.0,0.00049863,31]
[312661213,1706141473273,-500.0,0.00049863,31]
[312661214,1706141473283,-500.0,0.00049863,31]
[312661215,1706141473293,-500.0,0.00049863,31]
[312661216,1706141473306,-500.0,0.00049863,31]
[312661217,1706141473316,-500.0,0.00049863,31]
[312661218,1706141473326,-500.0,0.00049863,31]
[312661219,1706141473336,-500.0,0.00049863,31]
[312661220,1706141473346,-500.0,0.00049863,31]
[312661221,1706141473355,-500.0,0.00049863,31]
[312661222,1706141473366,-500.0,0.00049863,31]
[312661223,1706141473377,-626.76,0.00049863,31]
[312661224,1706141473387,-500.0,0.00049863,31]
[312661225,1706141473397,-524.2,0.00049863,31]
[312661226,1706141473406,-500.0,0.00049863,31]
[312661227,1706141473417,-500.0,0.00049863,31]
[312661228,1706141473426,-500.0,0.00049863,31]
[312661229,1706141473440,-500.0,0.00049863,31]
[312661230,1706141473450,-500.0,0.00049863,31]
[312661231,1706141473459,-500.0,0.00049863,31]
[312661232,1706141473469,-500.0,0.00049863,31]
[312661233,1706141473479,-500.0,0.00049863,31]
[312661234,1706141473489,-697.72,0.00049863,2]
[312661235,1706141473499,-500.0,0.00049863,31]
[312661236,1706141473509,-500.0,0.00049863,31]
[312661237,1706141473520,-401.57152702,0.00049863,31]
[312661238,1706141473531,-500.0,0.00049863,31]
[312661239,1706141473540,-500.0,0.00049863,31]
[312661240,1706141473554,-500.0,0.00049863,31]
[312661241,1706141473563,-500.0,0.00049863,31]
[312661242,1706141473573,-500.0,0.00049863,31]
[312661243,1706141473583,-500.0,0.00049863,31]
[312661244,1706141473842,-502.99,0.00049863,31]
[312661245,1706141473876,-500.0,0.00049863,31]
[312661246,1706141473885,-500.0,0.00049863,31]
[312661247,1706141473895,-500.0,0.00049863,31]
[312661248,1706141473905,-500.0,0.00049863,31]
[312661249,1706141473914,-500.0,0.00049863,31]
[312661250,1706141473923,-500.0,0.00049863,31]
[312661251,1706141473932,-1084.63,0.00049863,31]
[312661252,1706141473942,-500.0,0.00049863,31]
[312661253,1706141473951,-500.0,0.00049863,31]
[312661254,1706141473960,-500.0,0.00049863,31]
[312661255,1706141473970,-500.0,0.00049863,31]
[312661256,1706141473980,-500.0,0.00049863,31]
[312661257,1706141473989,-500.0,0.00049863,31]
[312661258,1706141473998,-500.0,0.00049863,31]
[312661259,1706141474009,-500.0,0.00049863,31]
[312661260,1706141474019,-500.0,0.00049863,31]
[312661261,1706141474028,-500.0,0.00049863,31]
[312661262,1706141474038,-500.0,0.00049863,31]
[312661263,1706141474049,-500.0,0.00049863,31]
[312661264,1706141474058,-500.0,0.00049863,31]
[312661265,1706141474069,-500.0,0.00049863,31]
[312661266,1706141474078,-500.0,0.00049863,31]
[312661267,1706141474087,-500.0,0.00049863,31]
[312661268,1706141474097,-500.0,0.00049863,31]
[312661269,1706141474106,-500.0,0.00049863,60]
[312661270,1706141474115,-500.0,0.00049863,31]
[312661271,1706141474125,-201.56899692,0.00049863,31]
[312661272,1706141474134,-341.8801651,0.00049863,31]
[312661273,1706141474143,-500.0,0.00049863,31]
[312661274,1706141474153,-500.0,0.00049863,31]
[312661275,1706141474163,-563.82,0.00049863,31]
[312661276,1706141474172,-193.75942284,0.00049863,3]
[312661277,1706141474181,-500.0,0.00049863,31]
[312661278,1706141474191,-500.0,0.00049863,31]
[312661279,1706141474200,-500.0,0.00049863,31]
[312661280,1706141474210,-1246.63,0.00049863,7]
[312661281,1706141474219,-500.0,0.00049863,31]
[312661282,1706141474228,-500.0,0.00049863,31]
[312661283,1706141474238,-500.0,0.00049863,31]
[312661284,1706141474247,-500.0,0.00049863,31]
[312661285,1706141474257,-669.25,0.00049863,20]
[312661286,1706141474267,-500.0,0.00049863,31]
[312661287,1706141474277,-500.0,0.00049863,31]
[312661288,1706141474286,-500.0,0.00049863,31]
[312661289,1706141474298,-500.0,0.00049863,31]
[312661290,1706141474307,-500.0,0.00049863,31]
[312661291,1706141474316,-500.0,0.00049863,31]
[312661292,1706141474326,-500.0,0.00049863,31]
[312661293,1706141474335,-500.0,0.00049863,31]
[312661294,1706141474345,-500.0,0.00049863,31]
[312661295,1706141474355,-500.0,0.00049863,31]
[312661296,1706141474364,-500.0,0.00049863,31]
[312661297,1706141474375,-500.0,0.00049863,31]
[312661298,1706141474385,-500.0,0.00049863,31]
[312661299,1706141474394,-500.0,0.00049863,31]
[312661300,1706141474404,-500.0,0.00049863,31]
[312661301,1706141474414,-500.0,0.00049863,31]
[312661302,1706141474423,-500.0,0.00049863,31]
[312661303,1706141474433,-500.0,0.00049863,31]
[312661304,1706141474442,-500.0,0.00049863,31]
[312661305,1706141474451,-500.0,0.00049863,31]
[312661306,1706141474461,-523.88,0.00049863,31]
[312661307,1706141474470,-500.0,0.00049863,14]
[312661308,1706141474480,-500.0,0.00049863,31]
[312661309,1706141474489,-500.0,0.00049863,31]
[312661310,1706141474499,-500.0,0.00049863,31]
[312661311,1706141474509,-500.0,0.00049863,31]
[312661312,1706141474518,-500.0,0.00049863,31]
[312661313,1706141474528,-500.0,0.00049863,31]
[312661314,1706141474537,-500.0,0.00049863,31]
[312661315,1706141474549,-500.0,0.00049863,31]
[312661316,1706141474559,-1233.91,0.00049863,7]
[312661317,1706141474569,-526.57,0.00049863,31]
[312661318,1706141474578,-1157.14,0.00049863,31]
[312661319,1706141474587,-500.0,0.00049863,31]
[312661320,1706141474597,-500.0,0.00049863,31]
[312661321,1706141474606,-500.0,0.00049863,31]
[312661322,1706141474615,-500.0,0.00049863,31]
[312661323,1706141474625,-500.0,0.00049863,31]
[312661324,1706141474634,-500.0,0.00049863,31]
[312661325,1706141474643,-500.0,0.00049863,31]
[312661326,1706141474652,-500.0,0.00049863,31]
[312661327,1706141474662,-594.98,0.00049863,31]
[312661328,1706141474671,-500.0,0.00049863,31]
[312661329,1706141474680,-4118.15,0.00049863,15]
[312661330,1706141474689,-358.81582849,0.00049863,31]
[312661331,1706141474699,-500.0,0.00049863,31]
[312661332,1706141474708,-500.0,0.00049863,31]
[312661333,1706141474717,-500.0,0.00049863,31]
[312661334,1706141474726,-500.0,0.00049863,31]
[312661335,1706141474735,-500.0,0.00049863,31]
[312661336,1706141474745,-500.0,0.00049863,31]
[312661337,1706141474756,-621.48,0.00049863,31]
[312661338,1706141474765,-500.0,0.00049863,31]
[312661339,1706141474774,-500.0,0.00049863,31]
[312661340,1706141474783,-1968.51,0.00049863,31]
[312661341,1706141474793,-500.0,0.00049863,31]
[312661342,1706141474804,-500.0,0.00049863,31]
[312661343,1706141474814,-500.0,0.00049863,31]
[312661344,1706141474824,-500.0,0.00049863,31]
[312661345,1706141474833,-500.0,0.00049863,31]
[312661346,1706141474843,-500.0,0.00049863,31]
[312661347,1706141474852,-500.0,0.00049863,31]
[312661348,1706141474861,-500.0,0.00049863,31]
[312661349,1706141474870,-937.73,0.00049863,2]
[312661350,1706141474880,-500.0,0.00049863,31]
[312661351,1706141474889,-500.0,0.00049863,31]
[312661352,1706141474898,-500.0,0.00049863,31]
[312661353,1706141474907,-4141.1,0.00049863,31]
[312661354,1706141474917,-500.0,0.00049863,31]
[312661355,1706141474926,-500.0,0.00049863,31]
[312661356,1706141474935,-500.0,0.00049863,31]
[312661357,1706141474944,-500.0,0.00049863,31]
[312661358,1706141474954,-500.0,0.00049863,31]
[312661359,1706141474963,-500.0,0.00049863,31]
[312661360,1706141474972,-561.83744939,0.00049863,31]
[312661361,1706141474982,-500.0,0.00049863,31]
[312661362,1706141474992,-500.0,0.00049863,31]
[312661363,1706141475001,-500.0,0.00049863,31]
[312661364,1706141475011,-500.0,0.00049863,31]
[312661365,1706141475021,-500.0,0.00049863,31]
[312661366,1706141475030,-500.0,0.00049863,31]
[312661367,1706141475040,-728.06,0.00049863,31]
[312661368,1706141475052,-500.0,0.00049863,31]
[312661369,1706141475061,-500.0,0.00049863,31]
[312661370,1706141475070,-500.0,0.00049863,31]
[312661371,1706141475080,-973.03,0.00049863,2]
[312661372,1706141475089,-500.0,0.00049863,31]
[312661373,1706141475098,-500.0,0.00049863,31]
[312661374,1706141475107,-500.0,0.00049863,31]
[312661375,1706141475117,-500.0,0.00049863,31]
[312661376,1706141475127,-500.0,0.00049863,31]
[312661377,1706141475136,-500.0,0.00049863,31]
[312661378,1706141475146,-1697.01,0.00049863,31]
[312661379,1706141475155,-500.0,0.00049863,31]
[312661380,1706141475165,-500.0,0.00049863,31]
[312661381,1706141475174,-500.0,0.00049863,31]
[312661382,1706141475183,-500.0,0.00049863,31]
[312661383,1706141475193,-556.66,0.00049863,31]
[312661384,1706141475202,-500.0,0.00049863,31]
[312661385,1706141475211,-681.8,0.00049863,31]
[312661386,1706141475221,-500.0,0.00049863,31]
[312661387,1706141475230,-500.0,0.00049863,31]
[312661388,1706141475240,-797.85,0.00049863,31]
[312661389,1706141475249,-508.04,0.00049863,31]
[312661390,1706141475259,-500.0,0.00049863,31]
[312661391,1706141475269,-500.0,0.00049863,31]
[312661392,1706141475279,-500.0,0.00049863,31]
[312661393,1706141475288,-659.17,0.00049863,31]
[312661394,1706141475304,-500.0,0.00049863,31]
[312661395,1706141475314,-500.0,0.00049863,31]
[312661396,1706141475323,-514.92,0.00049863,31]
[312661397,1706141475333,-520.3,0.00049863,31]
[312661398,1706141475342,-717.84,0.00049863,31]
[312661399,1706141475352,-1187.72,0.00049863,31]
[312661400,1706141475361,-500.0,0.00049863,31]
[312661401,1706141475370,-563.62,0.00049863,31]
[312661402,1706141475379,-500.0,0.00049863,31]
[312661403,1706141475389,-500.0,0.00049863,31]
[312661404,1706141475398,-203.82,0.00049863,31]
[312661405,1706141475407,-500.0,0.00049863,31]
[312661406,1706141475416,-1119.03,0.00049863,2]
[312661407,1706141475426,-1126.94,0.00049863,31]
[312661408,1706141475435,-551.67,0.00049863,31]
[312661409,1706141475445,-738.6,0.00049863,31]
[312661410,1706141475454,-1035.65,0.00049863,31]
[312661411,1706141475464,-500.0,0.00049863,31]
[312661412,1706141475474,-242.9521627,0.00049863,31]
[312661413,1706141475483,-500.0,0.00049863,31]
[312661414,1706141475492,-500.0,0.00049863,31]
[312661415,1706141475502,-1041.4,0.00049863,31]
[312661416,1706141475511,-500.0,0.00049863,31]
[312661417,1706141475521,-665.87,0.00049863,31]
[312661418,1706141475530,-500.0,0.00049863,31]
[312661419,1706141475539,-552.22467131,0.00049863,31]
[312661420,1706141475551,-511.53,0.00049863,31]
[312661421,1706141475561,-500.0,0.00049863,31]
[312661422,1706141475570,-531.79,0.00049863,31]
[312661423,1706141475580,-693.29,0.00049863,31]
[312661424,1706141475589,-1258.54,0.00049863,31]
[312661425,1706141475598,-569.14,0.00049863,31]
[312661426,1706141475608,-500.0,0.00049863,31]
[312661427,1706141475617,-500.0,0.00049863,31]
[312661428,1706141475626,-500.0,0.00049863,31]
[312661429,1706141475635,-500.0,0.00049863,31]
[312661430,1706141475645,-523.57,0.00049863,31]
[312661431,1706141475654,-500.0,0.00049863,31]
[312661432,1706141475663,-3674.77,0.00049863,31]
[312661433,1706141475672,-1845.53,0.00049863,31]
[312661434,1706141475682,-3124.04,0.00049863,31]
[312661435,1706141475691,-698.55,0.00049863,31]
[312661436,1706141475699,-500.0,0.00049863,31]
[312661437,1706141475708,-500.0,0.00049863,31]
[312661438,1706141475718,-500.0,0.00049863,31]
[312661439,1706141475727,-3836.74,0.00049863,5]
[312661440,1706141475736,-500.0,0.00049863,31]
[312661441,1706141475746,-1206.46,0.00049863,31]
[312661442,1706141475755,-500.0,0.00049863,31]
[312661443,1706141475764,-500.0,0.00049863,31]
[312661444,1706141475773,-1295.76,0.00049863,31]
[312661445,1706141475782,-500.0,0.00049863,31]
[312661446,1706141475792,-500.0,0.00049863,31]
[312661447,1706141475803,-414.33,0.00049863,31]
[312661448,1706141475812,-500.0,0.00049863,31]
[312661449,1706141475820,-766.32,0.00049863,31]
[312661450,1706141475830,-500.0,0.00049863,31]
[312661451,1706141475839,-944.79,0.00049863,31]
[312661452,1706141475848,-585.71,0.00049863,31]
[312661453,1706141475857,-500.0,0.00049863,31]
[312661454,1706141475866,-500.0,0.00049863,31]
[312661455,1706141475876,-5283.49,0.00049863,5]
[312661456,1706141475885,-500.0,0.00049863,31]
[312661457,1706141475894,-500.0,0.00049863,31]
[312661458,1706141475903,-500.0,0.00049863,31]
[312661459,1706141475913,-718.1,0.00049863,31]
[312661460,1706141475922,-500.0,0.00049863,31]
[312661461,1706141475931,-966.39,0.00049863,31]
[312661462,1706141475940,-8715.7,0.00049863,31]
[312661463,1706141475950,-634.67911668,0.00049863,31]
[312661464,1706141475959,-500.0,0.00049863,31]
[312661465,1706141475968,-1006.46,0.00049863,31]
[312661466,1706141475977,-517.29,0.00049863,31]
[312661467,1706141475986,-567.82,0.00049863,31]
[312661468,1706141475995,-608.48,0.00049863,31]
[312661469,1706141476004,-500.0,0.00049863,31]
[312661470,1706141476013,-500.0,0.00049863,31]
[312661471,1706141476023,-500.0,0.00049863,31]
[312661472,1706141476032,-5784.02,0.00049863,31]
[312661473,1706141476041,-500.0,0.00049863,31]
[312661474,1706141476051,-672.35,0.00049863,31]
[312661475,1706141476060,-719.02,0.00049863,31]
[312661476,1706141476069,-660.52,0.00049863,31]
[312661477,1706141476078,-571.27,0.00049863,31]
[312661478,1706141476087,-500.0,0.00049863,31]
[312661479,1706141476097,-500.0,0.00049863,31]
[312661480,1706141476105,-500.0,0.00049863,31]
[312661481,1706141476115,-500.0,0.00049863,31]
[312661482,1706141476203,-681.13,0.00049863,31]
[312661483,1706141476212,-500.0,0.00049863,31]
[312661484,1706141476221,-500.0,0.00049863,31]
[312661485,1706141476230,-500.0,0.00049863,31]
[312661486,1706141476239,-687.75,0.00049863,31]
[312661487,1706141476248,-500.0,0.00049863,31]
[312661488,1706141476257,-742.38,0.00049863,31]
[312661489,1706141476267,-2393.75,0.00049863,31]
[312661490,1706141476276,-500.0,0.00049863,31]
[312661491,1706141476286,-500.0,0.00049863,31]
[312661492,1706141476297,-5066.61,0.00049863,31]
[312661493,1706141476308,-500.0,0.00049863,31]
[312661494,1706141476316,-500.0,0.00049863,31]
[312661495,1706141476325,-572.67,0.00049863,31]
[312661496,1706141476334,-500.0,0.00049863,31]
[312661497,1706141476344,-500.0,0.00049863,31]
[312661498,1706141476353,-2453.54,0.00049863,31]
[312661499,1706141476363,-500.0,0.00049863,31]
[312661500,1706141476374,-2701.77,0.00049863,31]
[312661501,1706141476382,-500.0,0.00049863,31]
[312661502,1706141476391,-500.0,0.00049863,31]
[312661503,1706141476400,-584.5,0.00049863,31]
[312661504,1706141476409,-580.27,0.00049863,31]
[312661505,1706141476418,-500.0,0.00049863,31]
[312661506,1706141476427,-500.0,0.00049863,31]
[312661507,1706141476436,-500.0,0.00049863,31]
[312661508,1706141476445,-534.4061996,0.00049863,31]
[312661509,1706141476454,-1141.79,0.00049863,31]
[312661510,1706141476464,-1360.18,0.00049863,31]
[312661511,1706141476473,-1000.0,0.00049863,2]
[312661512,1706141476482,-543.89,0.00049863,31]
[312661513,1706141476492,-693.55,0.00049863,31]
[312661514,1706141476501,-683.16,0.00049863,31]
[312661515,1706141476510,-500.0,0.00049863,31]
[312661516,1706141476519,-500.0,0.00049863,31]
[312661517,1706141476528,-500.0,0.00049863,31]
[312661518,1706141476537,-500.0,0.00049863,31]
[312661519,1706141476546,-608.94,0.00049863,31]
[312661520,1706141476557,-835.92,0.00049863,31]
[312661521,1706141476566,-1468.94,0.00049863,31]
[312661522,1706141476575,-578.45,0.00049863,31]
[312661523,1706141476584,-500.0,0.00049863,31]
[312661524,1706141476593,-1000.0,0.00049863,30]
[312661525,1706141476602,-500.0,0.00049863,31]
[312661526,1706141476611,-552.79,0.00049863,31]
[312661527,1706141476620,-706.67,0.00049863,31]
[312661528,1706141476629,-2066.55,0.00049863,31]
[312661529,1706141476638,-540.87,0.00049863,31]
[312661530,1706141476647,-500.0,0.00049863,31]
[312661531,1706141476656,-582.15,0.00049863,31]
[312661532,1706141476665,-500.0,0.00049863,31]
[312661533,1706141476674,-639.06,0.00049863,31]
[312661534,1706141476684,-500.0,0.00049863,31]
[312661535,1706141476693,-500.0,0.00049863,31]
[312661536,1706141476702,-740.88,0.00049863,31]
[312661537,1706141476712,-700.44,0.00049863,31]
[312661538,1706141476721,-500.0,0.00049863,31]
[312661539,1706141476730,-500.0,0.00049863,31]
[312661540,1706141476739,-500.0,0.00049863,31]
[312661541,1706141476748,-537.04,0.00049863,31]
[312661542,1706141476758,-500.0,0.00049863,31]
[312661543,1706141476767,-751.1,0.00049863,31]
[312661544,1706141476776,-677.43,0.00049863,31]
[312661545,1706141476785,-500.0,0.00049863,31]
[312661546,1706141476794,-2280.94,0.00049863,31]
[312661547,1706141476806,-500.0,0.00049863,31]
[312661548,1706141476814,-500.0,0.00049863,31]
[312661549,1706141476823,-540.62553562,0.00049863,31]
[312661550,1706141476834,-500.0,0.00049863,31]
[312661551,1706141476843,-547.24,0.00049863,31]
[312661552,1706141476852,-500.0,0.00049863,31]
[312661553,1706141476861,-500.0,0.00049863,31]
[312661554,1706141476870,-544.54182815,0.00049863,31]
[312661555,1706141476879,-500.0,0.00049863,31]
[312661556,1706141476889,-1060.9,0.00049863,31]
[312661557,1706141476897,-581.01,0.00049863,31]
[312661558,1706141476906,-500.0,0.00049863,31]
[312661559,1706141476915,-500.0,0.00049863,31]
[312661560,1706141476924,-537.1,0.00049863,31]
[312661561,1706141476934,-778.86,0.00049863,31]
[312661562,1706141476943,-500.0,0.00049863,31]
[312661563,1706141476952,-515.45810626,0.00049863,31]
[312661564,1706141476961,-857.21,0.00049863,31]
[312661565,1706141476972,-500.0,0.00049863,31]
[312661566,1706141476981,-1735.79,0.00049863,31]
[312661567,1706141476990,-608.69,0.00049863,31]
[312661568,1706141476999,-500.0,0.00049863,31]
[312661569,1706141477008,-500.0,0.00049863,31]
[312661570,1706141477018,-606.25,0.00049863,31]
[312661571,1706141477027,-645.15,0.00049863,31]
[312661572,1706141477036,-500.0,0.00049863,31]
[312661573,1706141477045,-500.0,0.00049863,31]
[312661574,1706141477056,-500.0,0.00049863,31]
[312661575,1706141477065,-712.54,0.00049863,31]
[312661576,1706141477074,-1073.61,0.00049863,31]
[312661577,1706141477084,-500.0,0.00049863,31]
[312661578,1706141477093,-660.57,0.00049863,31]
[312661579,1706141477102,-1320.68,0.00049863,31]
[312661580,1706141477111,-4966.08,0.00049863,31]
[312661581,1706141477121,-655.7,0.00049863,31]
[312661582,1706141477130,-500.0,0.00049863,31]
[312661583,1706141477139,-992.0,0.00049863,31]
[312661584,1706141477148,-500.0,0.00049863,31]
[312661585,1706141477157,-1315.35,0.00049863,31]
[312661586,1706141477166,-500.0,0.00049863,31]
[312661587,1706141477175,-500.0,0.00049863,31]
[312661588,1706141477184,-500.0,0.00049863,31]
[312661589,1706141477193,-796.46,0.00049863,31]
[312661590,1706141477203,-500.0,0.00049863,31]
[312661591,1706141477212,-3061.04,0.00049863,31]
[312661592,1706141477221,-500.0,0.00049863,31]
[312661593,1706141477231,-500.0,0.00049863,31]
[312661594,1706141477240,-564.19,0.00049863,31]
[312661595,1706141477249,-860.59,0.00049863,31]
[312661596,1706141477258,-500.0,0.00049863,31]
[312661597,1706141477268,-553.53,0.00049863,31]
[312661598,1706141477277,-500.0,0.00049863,31]
[312661599,1706141477287,-500.0,0.00049863,31]
[312661600,1706141477298,-500.0,0.00049863,31]
[312661601,1706141477309,-2426.6,0.00049863,31]
[312661602,1706141477318,-547.26,0.00049863,31]
[312661603,1706141477327,-500.0,0.00049863,31]
[312661604,1706141477337,-609.64279285,0.00049863,31]
[312661605,1706141477347,-1086.36,0.00049863,31]
[312661606,1706141477357,-959.04,0.00049863,31]
[312661607,1706141477366,-649.59,0.00049863,31]
[312661608,1706141477375,-500.0,0.00049863,31]
[312661609,1706141477385,-703.22,0.00049863,31]
[312661610,1706141477394,-600.26,0.00049863,31]
[312661611,1706141477403,-740.74,0.00049863,31]
[312661612,1706141477412,-787.85,0.00049863,31]
[312661613,1706141477421,-730.54,0.00049863,31]
[312661614,1706141477431,-500.0,0.00049863,31]
[312661615,1706141477441,-765.5,0.00049863,31]
[312661616,1706141477450,-500.0,0.00049863,31]
[312661617,1706141477460,-500.0,0.00049863,31]
[312661618,1706141477469,-599.29,0.00049863,31]
[312661619,1706141477478,-500.0,0.00049863,31]